bitfinex-derivatives/quotes_BTCF0:USTF0_20250424
["timestamp","ask_amount","ask_price","bid_price","bid_amount"]
[1745454529137,0.62662,93331.0,93330.0,0.2791016]
[1745454529343,0.5,93331.0,93330.0,0.2791016]
[1745454529642,0.50899728,93331.0,93330.0,0.2791016]
[1745454529833,0.50899728,93331.0,93330.0,0.7479496]
[1745454530028,0.4384783,93331.0,93330.0,0.7479496]
[1745454530233,0.07072,93349.0,93348.0,0.107081]
[1745454530730,0.07873014,93349.0,93348.0,0.107081]
[1745454531141,0.07873014,93349.0,93348.0,0.279081]
[1745454532233,0.07973014,93349.0,93348.0,0.279081]
[1745454532532,0.57973014,93349.0,93348.0,0.279081]
[1745454532934,0.58173014,93349.0,93348.0,0.279081]
[1745454533443,0.58273014,93349.0,93348.0,0.279081]
[1745454533641,0.58073014,93349.0,93348.0,0.279081]
[1745454533953,0.58373014,93349.0,93348.0,0.280081]
[1745454535136,0.58273014,93349.0,93348.0,0.280081]
[1745454535845,0.58273014,93349.0,93348.0,0.640881]
[1745454537246,0.58173014,93349.0,93348.0,0.639881]
[1745454539857,0.51101014,93349.0,93348.0,0.639881]
[1745454541951,0.51101014,93349.0,93348.0,0.279081]
[1745454542852,0.51101014,93349.0,93348.0,0.386681]
[1745454546451,0.51101014,93349.0,93348.0,0.334481]
[1745454546752,0.1070827,93348.0,93347.0,0.107081]
[1745454547056,0.104,93348.0,93347.0,0.107081]
[1745454547942,0.604,93348.0,93347.0,0.107081]
[1745454548145,0.606,93348.0,93347.0,0.107081]
[1745454548350,0.607,93348.0,93347.0,0.107081]
[1745454548751,0.713081,93348.0,93347.0,0.107081]
[1745454548941,0.716081,93348.0,93347.0,0.107081]
[1745454549341,0.1070833,93346.0,93345.0,0.0535419]
[1745454550551,0.6070833,93346.0,93345.0,0.0535419]
[1745454551453,0.6110833,93346.0,93345.0,0.0535419]
[1745454551649,0.6140833,93346.0,93345.0,0.0535419]
[1745454552652,0.507,93346.0,93345.0,0.0535419]
[1745454553755,0.6140833,93346.0,93345.0,0.0535419]
[1745454556161,0.1070856,93344.0,93343.0,0.1601862]
[1745454556348,0.1070856,93344.0,93343.0,0.1070862]
[1745454556843,0.2139856,93344.0,93343.0,0.1070862]
[1745454557354,0.2179856,93344.0,93343.0,0.1070862]
[1745454557657,0.7179856,93344.0,93343.0,0.1070862]
[1745454558050,0.7199856,93344.0,93343.0,0.1070862]
[1745454558659,0.1070922,93339.0,93338.0,0.160635]
[1745454559050,0.1070896,93341.0,93340.0,0.1606314]
[1745454559554,0.1611874,93343.0,93342.0,0.1070879]
[1745454559759,0.1070908,93341.0,93340.0,0.1070898]
[1745454560159,0.2135908,93341.0,93340.0,0.1070898]
[1745454560748,0.1065,93341.0,93340.0,0.1070898]
[1745454561457,0.1095,93341.0,93340.0,0.1070898]
[1745454561760,0.005,93341.0,93340.0,0.1070898]
[1745454561962,0.005,93341.0,93340.0,0.1640898]
[1745454562146,0.005,93341.0,93340.0,0.2728898]
[1745454562657,0.505,93341.0,93340.0,0.2728898]
[1745454564460,0.3608,93356.0,93340.0,0.2728898]
[1745454564461,0.13571403,93353.0,93352.0,0.1070764]
[1745454564756,0.16285684,93362.0,93361.0,0.1070661]
[1745454564958,0.16285684,93362.0,93361.0,0.5749781]
[1745454565658,0.16285684,93362.0,93361.0,0.6303781]
[1745454565856,0.17071233,93362.0,93361.0,0.6865781]
[1745454566060,0.16285684,93362.0,93361.0,0.6865781]
[1745454566655,0.16385684,93362.0,93361.0,0.6865781]
[1745454567158,0.26517093,93379.0,93361.0,0.6865781]
[1745454567159,0.18929093,93379.0,93374.0,0.053525]
[1745454567363,0.18929093,93379.0,93378.0,0.8286466]
[1745454567767,0.18929093,93379.0,93378.0,0.9357386]
[1745454568267,0.1070324,93391.0,93386.0,0.1070374]
[1745454568452,0.1137,93398.0,93386.0,0.4678374]
[1745454568658,0.0011,93387.0,93386.0,0.4678374]
[1745454568861,0.0011,93387.0,93386.0,0.5784374]
[1745454569566,0.0051,93387.0,93386.0,0.5794374]
[1745454569764,0.01914873,93387.0,93386.0,0.5804374]
[1745454569960,0.0111,93387.0,93386.0,0.5804374]
[1745454570557,0.0111,93387.0,93386.0,0.6875174]
[1745454574371,0.0111,93387.0,93386.0,0.5804374]
[1745454578261,0.0111,93387.0,93386.0,0.4734]
[1745454578461,0.1070443,93380.0,93379.0,0.1070447]
[1745454578771,0.1070452,93380.0,93379.0,0.1070439]
[1745454578981,0.1070473,93378.0,93377.0,0.1070477]
[1745454579468,0.3608,93378.0,93367.0,0.053529]
[1745454579673,0.1070649,93363.0,93362.0,0.1070649]
[1745454579972,0.1829048,93363.0,93358.0,0.0535346]
[1745454580267,0.3608,93359.0,93356.0,0.0535359]
[1745454580470,0.1125,93358.0,93357.0,0.1070707]
[1745454580768,0.1125,93358.0,93357.0,0.160606]
[1745454581066,0.1125,93358.0,93357.0,0.0535353]
[1745454582073,0.1145,93358.0,93357.0,0.0565353]
[1745454587071,0.1145,93358.0,93357.0,0.1131353]
[1745454595479,0.1145,93358.0,93357.0,0.0565353]
[1745454596169,0.1145,93358.0,93357.0,0.1117353]
[1745454596372,0.0574,93358.0,93357.0,0.1692353]
[1745454597281,0.1148,93358.0,93357.0,0.1652707]
[1745454600179,0.002,93358.0,93357.0,0.1652707]
[1745454624087,0.1118,93358.0,93357.0,0.1652707]
[1745454627888,0.2188695,93358.0,93357.0,0.003]
[1745454628194,0.5796695,93358.0,93357.0,0.003]
[1745454629085,0.1070787,93350.0,93344.0,0.0535425]
[1745454629286,0.18744,93349.0,93336.0,0.1636726]
[1745454629487,0.3608,93339.0,93338.0,0.1606383]
[1745454630299,0.4728,93339.0,93338.0,0.1606383]
[1745454630991,0.4738,93339.0,93338.0,0.1616383]
[1745454631187,0.5808913,93339.0,93338.0,0.001]
[1745454631598,0.5828913,93339.0,93338.0,0.002]
[1745454632497,0.5828913,93339.0,93338.0,0.1090925]
[1745454632698,0.115,93339.0,93338.0,0.1090925]
[1745454632902,0.23019507,93339.0,93338.0,0.1090925]
[1745454645006,0.23019507,93339.0,93338.0,0.002]
[1745454649802,0.24979507,93339.0,93338.0,0.0601]
[1745454653012,0.14270377,93339.0,93338.0,0.1671925]
[1745454654820,0.24979507,93339.0,93338.0,0.1671925]
[1745454656715,0.03070377,93339.0,93338.0,0.1671925]
[1745454657016,0.01411934,93339.0,93338.0,0.3743285]
[1745454657412,0.01411934,93339.0,93338.0,0.4323285]
[1745454657608,0.01411934,93339.0,93338.0,0.095]
[1745454657807,0.0535523,93328.0,93313.0,0.0539]
[1745454658115,0.4143558,93322.0,93313.0,0.1610208]
[1745454658318,0.1071188,93315.0,93314.0,0.058]
[1745454658518,0.13136,93321.0,93308.0,0.1636726]
[1745454658519,0.1071257,93309.0,93308.0,0.1636726]
[1745454658709,0.0556,93314.0,93308.0,0.1636726]
[1745454659019,0.0574,93313.0,93309.0,0.0539]
[1745454659215,0.0574,93313.0,93311.0,0.1071224]
[1745454659416,0.0574,93313.0,93312.0,0.1610223]
[1745454659616,0.0574,93313.0,93312.0,0.0539]
[1745454659815,0.5253211,93313.0,93312.0,0.0539]
[1745454660519,0.5263211,93313.0,93312.0,0.0549]
[1745454660712,0.5830211,93313.0,93312.0,0.0549]
[1745454661725,0.1151,93313.0,93312.0,0.1620223]
[1745454661916,0.06912756,93313.0,93312.0,0.1620223]
[1745454662118,0.17724866,93313.0,93312.0,0.1650223]
[1745454663118,0.17724866,93313.0,93312.0,0.0579]
[1745454663516,0.23394866,93313.0,93312.0,0.0579]
[1745454663716,0.23394866,93313.0,93312.0,0.1149]
[1745454665123,0.1071315,93304.0,93303.0,0.00535886]
[1745454665720,0.2192315,93304.0,93303.0,0.00535886]
[1745454666423,0.0543,93304.0,93303.0,0.00635886]
[1745454666618,0.0543,93304.0,93303.0,0.17229146]
[1745454666812,0.1624315,93304.0,93303.0,0.22589146]
[1745454667127,0.0553,93304.0,93303.0,0.22589146]
[1745454667318,0.1624315,93304.0,93303.0,0.11875886]
[1745454668516,0.1624315,93304.0,93303.0,0.11775886]
[1745454669327,0.1624315,93304.0,93303.0,0.05895886]
[1745454669721,0.0553,93304.0,93303.0,0.05895886]
[1745454670034,0.1624315,93304.0,93303.0,0.11575886]
[1745454671913,0.0553,93304.0,93303.0,0.22289146]
[1745454673214,0.002,93304.0,93303.0,0.22289146]
[1745454673416,0.07956,93311.0,93310.0,0.1071246]
[1745454673616,0.00029,93314.0,93313.0,0.1071211]
[1745454673822,0.00029,93314.0,93313.0,0.4679211]
[1745454674128,0.07956,93322.0,93321.0,0.107112]
[1745454674323,0.07956,93322.0,93321.0,0.467912]
[1745454674524,0.0557,93331.0,93322.0,0.1071108]
[1745454674723,0.0557,93331.0,93322.0,0.2878108]
[1745454676119,0.00760842,93323.0,93322.0,0.2878108]
[1745454676522,0.01160842,93323.0,93322.0,0.2878108]
[1745454677627,1e-08,93323.0,93322.0,0.3949668]
[1745454678031,1e-08,93323.0,93322.0,0.4949668]
[1745454678231,0.058,93342.0,93334.0,0.107097]
[1745454678419,0.058,93342.0,93334.0,0.467897]
[1745454679426,0.1660933,93338.0,93334.0,0.586397]
[1745454679627,0.1660933,93338.0,93337.0,0.1070936]
[1745454680418,0.0587,93348.0,93338.0,0.1070925]
[1745454680624,0.059,93347.0,93338.0,0.1070925]
[1745454681328,0.059,93347.0,93338.0,0.2255925]
[1745454681529,0.0229561,93339.0,93338.0,0.2265925]
[1745454681827,0.10854947,93349.0,93338.0,0.2265925]
[1745454681828,0.10854947,93349.0,93348.0,0.107081]
[1745454682025,0.10854947,93349.0,93348.0,0.467881]
[1745454682725,0.10854947,93349.0,93348.0,0.648081]
[1745454683234,0.00798481,93349.0,93348.0,0.648081]
[1745454683625,0.002,93349.0,93348.0,0.651081]
[1745454684132,0.00160796,93358.0,93357.0,0.1070707]
[1745454684330,0.00946903,93358.0,93357.0,0.4678707]
[1745454684736,0.00160796,93358.0,93357.0,0.4678707]
[1745454684931,0.00160796,93358.0,93357.0,0.5841707]
[1745454685121,0.0608,93372.0,93367.0,0.1070592]
[1745454685321,0.0608,93372.0,93367.0,0.1050592]
[1745454685522,0.11661108,93368.0,93367.0,0.1050592]
[1745454685835,0.11661108,93368.0,93367.0,0.1630592]
[1745454686022,0.11661108,93368.0,93367.0,0.1590592]
[1745454686220,0.12061108,93368.0,93367.0,0.1600592]
[1745454686431,0.12061108,93368.0,93367.0,0.2166592]
[1745454686633,0.10717355,93368.0,93367.0,0.2788592]
[1745454686821,0.10717355,93368.0,93367.0,0.3788592]
[1745454688030,0.01806161,93368.0,93367.0,0.3788592]
[1745454688333,0.01806161,93368.0,93367.0,0.3176592]
[1745454688534,0.01406161,93368.0,93367.0,0.3166592]
[1745454688837,0.00806161,93368.0,93367.0,0.3166592]
[1745454689041,0.00806161,93368.0,93367.0,0.3176592]
[1745454689231,0.0607,93375.0,93374.0,0.1070512]
[1745454690434,0.0617,93375.0,93374.0,0.1070512]
[1745454691225,0.06984514,93375.0,93374.0,0.1070512]
[1745454691831,0.00914514,93375.0,93374.0,0.1070512]
[1745454693233,0.06694514,93375.0,93374.0,0.1070512]
[1745454696441,0.06694514,93375.0,93374.0,0.4678512]
[1745454699237,0.00914514,93375.0,93374.0,0.4678512]
[1745454700736,0.12984514,93375.0,93374.0,0.4678512]
[1745454701635,0.06824514,93375.0,93374.0,0.4678512]
[1745454703837,0.061,93377.0,93376.0,0.1070489]
[1745454704237,0.06884341,93377.0,93376.0,0.1070489]
[1745454704741,0.00784341,93377.0,93376.0,0.1070489]
[1745454704944,0.00884341,93377.0,93376.0,0.1070489]
[1745454705131,0.00100001,93377.0,93376.0,0.3141409]
[1745454705443,1e-08,93377.0,93376.0,0.3141409]
[1745454709243,1e-08,93377.0,93376.0,0.7317409]
[1745454710445,1e-08,93387.0,93386.0,0.1070374]
[1745454710744,1e-08,93387.0,93386.0,0.5678374]
[1745454710946,1e-08,93387.0,93386.0,0.6749174]
[1745454711743,0.00100001,93387.0,93386.0,0.6749174]
[1745454712445,1e-08,93387.0,93386.0,0.6749174]
[1745454713047,0.03088019,93392.0,93391.0,0.2070317]
[1745454713445,0.03088019,93392.0,93391.0,0.31410769]
[1745454713636,0.03088019,93392.0,93391.0,0.43680769]
[1745454713837,0.09008019,93392.0,93391.0,0.43680769]
[1745454714238,0.09208019,93392.0,93391.0,0.43680769]
[1745454714551,0.0632,93392.0,93391.0,0.43680769]
[1745454715138,0.0632,93392.0,93391.0,0.2070317]
[1745454715339,0.1269,93392.0,93391.0,0.2070317]
[1745454716544,0.1269,93392.0,93391.0,0.2713317]
[1745454717948,0.1269,93392.0,93391.0,0.3353317]
[1745454719342,0.0632,93392.0,93391.0,0.3353317]
[1745454720847,0.1251,93392.0,93391.0,0.3353317]
[1745454722751,0.0632,93392.0,93391.0,0.3353317]
[1745454722955,0.004,93392.0,93391.0,0.3353317]
[1745454723145,0.004,93392.0,93391.0,0.5073317]
[1745454726656,0.004,93392.0,93391.0,1.2289317]
[1745454730549,1e-07,93392.0,93391.0,1.2289317]
[1745454732647,1e-07,93392.0,93391.0,1.6465317]
[1745454734252,1e-07,93392.0,93391.0,1.5825317]
[1745454735755,1e-07,93392.0,93391.0,1.4182317]
[1745454737150,1e-07,93392.0,93391.0,1.2462317]
[1745454738448,1e-07,93392.0,93391.0,0.8286317]
[1745454739257,1e-07,93392.0,93391.0,1.0006317]
[1745454743153,1e-07,93392.0,93391.0,1.1006317]
[1745454743359,1e-07,93392.0,93391.0,1.1655317]
[1745454749260,0.0052,93400.0,93399.0,0.1070237]
[1745454749460,1e-07,93400.0,93399.0,0.5678237]
[1745454750063,1e-07,93400.0,93399.0,0.7995237]
[1745454750264,0.0030001,93400.0,93399.0,0.7995237]
[1745454750671,0.0060001,93400.0,93399.0,0.7995237]
[1745454751062,1e-07,93400.0,93399.0,0.7995237]
[1745454780883,1e-07,93400.0,93399.0,0.8015237]
[1745454781279,0.0586,93406.0,93405.0,0.1070171]
[1745454781482,0.0586,93406.0,93405.0,0.5678171]
[1745454781879,0.0586,93406.0,93405.0,0.4678171]
[1745454782273,0.0586,93406.0,93405.0,0.4688171]
[1745454782480,0.41566,93406.0,93402.0,0.3608]
[1745454782681,0.1070194,93403.0,93402.0,0.4678182]
[1745454783088,0.10704,93386.0,93385.0,0.1070355]
[1745454783385,0.10704,93386.0,93359.0,0.08282]
[1745454783386,0.1070481,93378.0,93375.0,0.21662683]
[1745454783685,0.5749411,93377.0,93376.0,0.0535249]
[1745454783890,0.1605954,93366.0,93365.0,0.1070612]
[1745454784193,0.43672,93366.0,93365.0,0.1070629]
[1745454784381,0.80459072,93366.0,93365.0,0.1070629]
[1745454785282,0.72659072,93366.0,93365.0,0.1070629]
[1745454785482,0.72659072,93366.0,93365.0,0.1090629]
[1745454785682,0.72659072,93366.0,93365.0,0.1120629]
[1745454786285,1.08365262,93366.0,93365.0,0.1120629]
[1745454786486,0.97659072,93366.0,93365.0,0.1120629]
[1745454786690,0.65067072,93366.0,93365.0,0.1120629]
[1745454786890,0.84899072,93366.0,93365.0,0.1120629]
[1745454787287,0.95605262,93366.0,93365.0,0.1120629]
[1745454787481,0.95497262,93366.0,93365.0,0.1100629]
[1745454787690,0.95497262,93366.0,93365.0,0.1120629]
[1745454787885,0.95497262,93366.0,93365.0,0.1090629]
[1745454788090,0.95497262,93366.0,93365.0,0.1110629]
[1745454788487,0.95497262,93366.0,93365.0,0.1090629]
[1745454788796,0.95497262,93366.0,93365.0,0.1110629]
[1745454789391,0.1606023,93362.0,93361.0,0.1070675]
[1745454789794,0.51771431,93362.0,93361.0,0.1070675]
[1745454789993,0.63931431,93362.0,93361.0,0.1070675]
[1745454790502,0.53224551,93362.0,93361.0,0.1070675]
[1745454790888,0.53324551,93362.0,93361.0,0.1070675]
[1745454791093,0.65171201,93362.0,93361.0,0.1070675]
[1745454791595,0.40171201,93362.0,93361.0,0.1070675]
[1745454791797,0.40171201,93362.0,93361.0,0.1080675]
[1745454791998,0.47559201,93362.0,93361.0,0.1080675]
[1745454792497,0.47559201,93362.0,93361.0,0.1070675]
[1745454792690,0.47559201,93362.0,93361.0,0.1080675]
[1745454793191,0.30359201,93362.0,93361.0,0.1080675]
[1745454793701,0.30359201,93362.0,93361.0,0.1090675]
[1745454796203,0.22871201,93362.0,93361.0,0.1090675]
[1745454796496,0.3608,93370.0,93369.0,0.1070569]
[1745454796697,0.43568,93370.0,93369.0,0.1070569]
[1745454796890,0.3608,93370.0,93369.0,0.1070569]
[1745454797086,0.3608,93370.0,93369.0,0.2277569]
[1745454797295,0.3608,93370.0,93369.0,0.3997569]
[1745454797797,0.3648,93370.0,93369.0,0.3997569]
[1745454798686,0.3608,93370.0,93369.0,0.3997569]
[1745454799694,0.0305,93395.0,93387.0,0.1070363]
[1745454800005,0.44641275,93388.0,93387.0,0.1070363]
[1745454800299,0.47861275,93388.0,93387.0,0.2790363]
[1745454800500,0.55349275,93388.0,93387.0,0.2790363]
[1745454800892,0.56149275,93388.0,93387.0,0.3454363]
[1745454801100,0.48661275,93388.0,93387.0,0.4103363]
[1745454801303,0.44368,93388.0,93387.0,0.4103363]
[1745454802098,0.3688,93388.0,93387.0,0.4103363]
[1745454803300,0.008,93388.0,93387.0,0.4103363]
[1745454805194,0.36884967,93408.0,93393.0,0.0535143]
[1745454805398,0.36884967,93408.0,93405.0,0.1070156]
[1745454805399,0.01081237,93406.0,93405.0,0.1070156]
[1745454805597,0.07488,93407.0,93406.0,0.1070145]
[1745454805999,0.24394,93407.0,93406.0,0.1070145]
[1745454806204,0.24394,93407.0,93406.0,0.2790145]
[1745454807001,0.24394,93407.0,93406.0,0.2720145]
[1745454807593,0.24494,93407.0,93406.0,0.2720145]
[1745454808101,0.17006,93407.0,93406.0,0.1000145]
[1745454808303,0.24494,93407.0,93406.0,0.1000145]
[1745454809094,0.24494,93407.0,93406.0,0.2720145]
[1745454809607,0.17006,93407.0,93406.0,0.2720145]
[1745454809809,0.001,93407.0,93406.0,0.2720145]
[1745454810201,0.00804967,93408.0,93407.0,0.1070133]
[1745454810503,0.00160699,93409.0,93408.0,0.1070122]
[1745454811299,0.00160699,93409.0,93408.0,0.2790122]
[1745454811612,0.00160699,93409.0,93408.0,0.2820122]
[1745454813205,0.00945677,93409.0,93408.0,0.2820122]
[1745454813405,0.01045677,93409.0,93408.0,0.2820122]
[1745454814412,0.0011,93417.0,93416.0,0.107003]
[1745454815213,0.0011,93417.0,93416.0,0.279003]
[1745454816604,0.0031,93417.0,93416.0,0.279003]
[1745454816804,0.01127492,93417.0,93416.0,0.279003]
[1745454817114,0.0031,93417.0,93416.0,0.279003]
[1745454819013,0.3608,93434.0,93430.0,0.0534935]
[1745454819314,0.3608,93434.0,93433.0,0.1069836]
[1745454820203,0.3678,93434.0,93433.0,0.1069836]
[1745454820807,0.3628,93434.0,93433.0,0.1069836]
[1745454821006,0.3678,93434.0,93433.0,0.1069836]
[1745454821201,0.3759861,93434.0,93433.0,0.1069836]
[1745454821713,0.3739861,93434.0,93433.0,0.1069836]
[1745454821906,0.4402861,93434.0,93433.0,0.1069836]
[1745454822303,0.4382861,93434.0,93433.0,0.1069836]
[1745454822510,0.4342861,93434.0,93433.0,0.1069836]
[1745454825504,0.1069978,93424.0,93423.0,0.1069913]
[1745454825817,0.107011,93409.0,93408.0,0.1070078]
[1745454826110,0.3608,93409.0,93408.0,0.1070078]
[1745454826313,0.1070202,93401.0,93400.0,0.0608]
[1745454826509,0.3608,93401.0,93400.0,0.1070214]
[1745454828512,0.3608,93401.0,93400.0,0.1130214]
[1745454829018,0.3608,93401.0,93400.0,0.1823214]
[1745454829220,0.3608,93401.0,93400.0,0.3513214]
[1745454829405,0.3608,93401.0,93400.0,0.3473214]
[1745454829607,0.3608,93401.0,93400.0,0.3513214]
[1745454830020,0.3608,93401.0,93400.0,0.2860214]
[1745454831212,0.3608,93401.0,93400.0,0.1140214]
[1745454831617,0.4678202,93401.0,93400.0,0.1140214]
[1745454832008,0.4678202,93401.0,93400.0,0.1100214]
[1745454832207,0.4678202,93401.0,93400.0,0.1140214]
[1745454832607,0.3608,93401.0,93400.0,0.1110214]
[1745454832811,0.3608,93401.0,93400.0,0.1140214]
[1745454833205,0.3608,93401.0,93400.0,0.2860214]
[1745454833408,0.3608,93401.0,93400.0,0.4088214]
[1745454839023,0.08120155,93407.0,93406.0,0.1070145]
[1745454839917,0.08120155,93407.0,93406.0,0.2310145]
[1745454840122,0.08120155,93407.0,93406.0,0.4030145]
[1745454840715,0.08120155,93407.0,93406.0,0.4060145]
[1745454841510,0.14680155,93407.0,93406.0,0.4060145]
[1745454841715,0.14680155,93407.0,93406.0,0.4080145]
[1745454841716,0.0656,93407.0,93406.0,0.4080145]
[1745454842115,0.43448,93409.0,93408.0,0.1070122]
[1745454842725,0.3608,93409.0,93408.0,0.1070122]
[1745454842916,0.0656,93414.0,93413.0,0.1070065]
[1745454843721,0.3608,93418.0,93417.0,0.1070019]
[1745454844126,0.43448,93418.0,93417.0,0.2790019]
[1745454844619,0.43448,93418.0,93417.0,0.4049019]
[1745454845214,0.49468,93418.0,93417.0,0.4049019]
[1745454845419,0.421,93418.0,93417.0,0.4049019]
[1745454845625,0.421,93418.0,93417.0,0.4069019]
[1745454845829,0.49468,93418.0,93417.0,0.4069019]
[1745454846029,0.43187404,93418.0,93417.0,0.4069019]
[1745454846217,0.50555404,93418.0,93417.0,0.4069019]
[1745454847029,0.50555404,93418.0,93417.0,0.4099019]
[1745454847927,0.43187404,93418.0,93417.0,0.4099019]
[1745454848124,0.37167404,93418.0,93417.0,0.4099019]
[1745454848334,0.43448,93418.0,93417.0,0.4099019]
[1745454852633,0.3608,93418.0,93417.0,0.4099019]
[1745454855629,0.44216739,93418.0,93417.0,0.4099019]
[1745454861435,0.44216739,93418.0,93417.0,0.4168019]
[1745454861634,0.10848986,93424.0,93423.0,0.106995]
[1745454861830,0.10848986,93424.0,93423.0,0.206995]
[1745454862028,0.01018986,93424.0,93423.0,0.206995]
[1745454862227,0.01018986,93424.0,93423.0,0.504595]
[1745454862838,0.0011,93447.0,93433.0,0.1069836]
[1745454863033,0.0011,93447.0,93439.0,0.1069767]
[1745454863234,0.16969116,93440.0,93439.0,0.1138767]
[1745454863433,0.0011,93447.0,93446.0,0.1069687]
[1745454863641,0.3608,93454.0,93447.0,0.1069675]
[1745454864159,0.18856411,93456.0,93447.0,0.2315675]
[1745454864160,0.0628,93453.0,93447.0,0.2315675]
[1745454864338,0.01321242,93448.0,93447.0,0.2315675]
[1745454864639,0.0052,93448.0,93447.0,0.2315675]
[1745454864839,0.0062,93448.0,93447.0,0.2325675]
[1745454865351,0.0062,93448.0,93447.0,0.3919675]
[1745454866339,0.0052,93448.0,93447.0,0.5629675]
[1745454867434,0.0612,93463.0,93458.0,0.1069549]
[1745454868434,0.0612,93463.0,93458.0,0.2321549]
[1745454868635,0.0612,93463.0,93460.0,0.1069527]
[1745454868833,0.0534673,93476.0,93460.0,0.4746527]
[1745454868834,0.3608,93476.0,93460.0,0.4746527]
[1745454869033,0.0655,93475.0,93474.0,0.1069366]
[1745454869340,0.3608,93476.0,93472.0,0.053469]
[1745454869341,0.3608,93476.0,93475.0,0.1049355]
[1745454870044,0.3608,93476.0,93475.0,0.1029355]
[1745454870239,0.00793302,93476.0,93475.0,0.1098355]
[1745454870441,0.3608,93484.0,93476.0,0.1039343]
[1745454870639,0.3608,93484.0,93476.0,0.1663343]
[1745454871144,0.0534649,93480.0,93476.0,0.1663343]
[1745454871353,0.0591,93479.0,93476.0,0.1019343]
[1745454871844,0.3608,93481.0,93476.0,0.1019343]
[1745454872042,0.3608,93481.0,93476.0,0.2019343]
[1745454872246,0.3608,93481.0,93476.0,0.3739343]
[1745454872543,0.3608,93481.0,93476.0,0.3749343]
[1745454872753,0.0652,93489.0,93476.0,0.3749343]
[1745454873243,0.3608,93485.0,93476.0,0.3749343]
[1745454873447,0.0078945,93483.0,93476.0,0.3749343]
[1745454873648,0.0078945,93483.0,93476.0,0.3818343]
[1745454873842,0.0078945,93483.0,93476.0,0.3838343]
[1745454874044,0.0078945,93483.0,93476.0,0.3858343]
[1745454875348,0.061,93482.0,93476.0,0.2138343]
[1745454875939,0.0638,93481.0,93476.0,0.2138343]
[1745454876948,0.4688332,93477.0,93476.0,0.1138343]
[1745454877149,0.3619,93477.0,93476.0,0.1138343]
[1745454877345,0.8296332,93477.0,93476.0,0.0119]
[1745454877741,0.8296332,93477.0,93468.0,0.0534712]
[1745454877742,0.1069424,93470.0,93468.0,0.0534712]
[1745454877942,0.4213,93469.0,93468.0,0.0534712]
[1745454878147,0.4843,93469.0,93468.0,0.0534712]
[1745454879050,0.4843,93469.0,93468.0,0.0564712]
[1745454879255,0.6563,93469.0,93468.0,0.0564712]
[1745454879850,0.6563,93469.0,93468.0,0.0614712]
[1745454880255,0.6563,93469.0,93468.0,0.0574712]
[1745454880450,0.6563,93469.0,93468.0,0.0614712]
[1745454880756,0.235,93469.0,93468.0,0.0614712]
[1745454881257,0.063,93469.0,93468.0,0.0614712]
[1745454881851,0.063,93469.0,93468.0,0.0594712]
[1745454882049,0.0634,93476.0,93475.0,0.1069355]
[1745454882352,0.1229,93476.0,93475.0,0.1069355]
[1745454883147,0.1229,93476.0,93475.0,0.1079355]
[1745454885759,0.1229,93476.0,93475.0,0.1089355]
[1745454885947,0.0595,93476.0,93475.0,0.1089355]
[1745454886954,0.0595,93476.0,93475.0,0.1681355]
[1745454888258,0.3619,93477.0,93476.0,0.1069343]
[1745454888461,0.3619,93477.0,93476.0,0.2264343]
[1745454889357,0.3619,93477.0,93476.0,0.2274343]
[1745454893158,0.3619,93477.0,93476.0,0.3994343]
[1745454894266,0.3619,93477.0,93476.0,0.2274343]
[1745454894568,0.3619,93477.0,93476.0,0.1682343]
[1745454898265,0.3619,93477.0,93476.0,0.3402343]
[1745454898567,0.3619,93477.0,93476.0,0.34477173]
[1745454899268,0.3619,93477.0,93476.0,0.17277173]
[1745454899470,0.3619,93477.0,93476.0,0.1682343]
[1745454904363,0.4688332,93477.0,93476.0,0.1079343]
[1745454904564,0.3619,93477.0,93476.0,0.1079343]
[1745454905076,0.5339,93477.0,93476.0,0.1079343]
[1745454905372,0.6568,93477.0,93476.0,0.11247533]
[1745454905959,0.6568,93477.0,93476.0,0.24047533]
[1745454906173,0.4211,93477.0,93476.0,0.24047533]
[1745454907073,0.0603,93477.0,93476.0,0.24047533]
[1745454909278,0.0011,93477.0,93476.0,0.24047533]
[1745454910177,0.0011,93477.0,93476.0,0.41249639]
[1745454911078,0.0011,93477.0,93476.0,0.24049639]
[1745454918180,0.0011,93477.0,93476.0,0.41249639]
[1745454919170,0.0011,93477.0,93476.0,0.24049639]
[1745454921881,0.0011,93477.0,93476.0,0.17639639]
[1745454922281,0.1731,93477.0,93476.0,0.17639639]
[1745454922583,0.1731,93477.0,93476.0,0.1718343]
[1745454922975,0.1731,93477.0,93476.0,0.2337343]
[1745454923778,0.2800332,93477.0,93476.0,0.001]
[1745454923981,0.53008,93477.0,93461.0,0.0652]
[1745454924193,0.23542885,93471.0,93470.0,0.1069412]
[1745454924384,0.3608,93471.0,93470.0,0.1069412]
[1745454924683,0.467784,93471.0,93470.0,0.1069412]
[1745454925080,0.6581,93471.0,93470.0,0.1069412]
[1745454926589,0.6581,93471.0,93470.0,0.1089412]
[1745454926786,0.6581,93471.0,93470.0,0.1099412]
[1745454927190,0.7291,93471.0,93470.0,0.1099412]
[1745454933293,0.5571,93471.0,93470.0,0.2819412]
[1745454933486,0.3608,93471.0,93470.0,0.2819412]
[1745454934301,0.3608,93471.0,93470.0,0.4094412]
[1745454934690,0.0011,93477.0,93476.0,0.1069343]
[1745454935286,0.0011,93477.0,93476.0,0.2789343]
[1745454935488,0.0011,93477.0,93476.0,0.4051343]
[1745454937497,0.0011,93477.0,93476.0,0.4061343]
[1745454949206,1e-07,93477.0,93476.0,0.4061343]
[1745454949503,1e-07,93477.0,93476.0,0.5061343]
[1745454950102,1e-07,93477.0,93476.0,0.6131143]
[1745454950303,0.1069049,93502.0,93476.0,0.6131143]
[1745454950304,0.1,93500.0,93495.0,0.1069126]
[1745454950603,0.05970035,93499.0,93498.0,0.2069092]
[1745454950806,0.3608,93519.0,93506.0,0.1069]
[1745454951006,4e-08,93508.0,93507.0,0.1068989]
[1745454951201,4e-08,93508.0,93507.0,0.4658989]
[1745454951393,4e-08,93508.0,93507.0,0.4618989]
[1745454952196,0.3608,93530.0,93522.0,0.1068818]
[1745454952402,0.3608,93530.0,93529.0,0.1068738]
[1745454953501,0.3608,93530.0,93529.0,0.2329738]
[1745454954104,0.1068772,93526.0,93525.0,0.0534386]
[1745454954308,0.1068772,93526.0,93525.0,0.1603146]
[1745454954605,0.1068806,93523.0,93522.0,0.001]
[1745454955010,0.2838086,93523.0,93522.0,0.1068818]
[1745454955307,0.4558086,93523.0,93522.0,0.1068818]
[1745454955501,0.5170086,93523.0,93522.0,0.1068818]
[1745454956805,0.660128,93523.0,93517.0,0.106887]